[Event "22nd Hoogeveen Open 2018"]
[Site "Hoogeveen"]
[Date "2018.10.21"]
[Round "2"]
[White "Rubingh, Otto"]
[Black "Biermann, Florian"]
[Result "1/2-1/2"]
[ECO "E61"]
[WhiteElo "2154"]
[BlackElo "2024"]
[Annotator "NA"]
[PlyCount "68"]
[EventDate "2018.10.20"]
[EventType "swiss"]
[EventCountry "NED"]
[SourceTitle "playchess.com"]
[Source "ChessBase"]
[SourceQuality "1"]
[TimeControl "40/5400+30:1800+30"]

1. d4 {[%emt 0:00:00]} Nf6 {[%emt 0:00:00]} 2. Nf3 {[%emt 0:00:00]} g6 {[%emt 0:00:42]} 3. c4 {[%emt 0:00:09]} Bg7 {[%emt 0:00:00]} 4. Nc3 {[%emt 0:00:07]} O-O {[%emt 0:00:00]} 5. Bg5 {[%emt 0:00:21] LiveBook: 2096 Games} c5 {[%emt 0:01:39]} 6. Qd2 {[%emt 0:01:11] E61: King's Indian: Early deviations for White, including Smyslov System} (6. d5 d6 7. e3 a6 8. Nd2 h6 9. Bh4 e6 10. a4 exd5 11. cxd5 Nbd7 12. Be2 Qe7 13. O-O Ne5 14. h3 g5 15. Bg3 Bf5 {½-½ (45) Hansen,S (2590)-Van Kampen,R (2643) Germany 2016}) 6... cxd4 {[%emt 0:00:55]} 7. Nxd4 {[%emt 0:00:09]} Nc6 {[%emt 0:00:25]} 8. e3 {[%emt 0:04:27]} Nxd4 {[%emt 0:02:57]} 9. exd4 {[%emt 0:02:16]} d5 {[%emt 0:03:00]} 10. Bxf6 {[%emt 0:06:09]} Bxf6 {[%emt 0:00:11]} 11. Nxd5 $146 {[%emt 0:00:13]} ({Predecessor:} 11. cxd5 e6 12. Be2 {½-½ (12) Berndt,K (2233)-Rohde,W (2233) Germany 2005}) 11... Bg7 {[%emt 0:00:06]} 12. Rd1 {[%emt 0:01:31]} Bg4 {[%emt 0:21:57]} 13. f3 {[%emt 0:09:26]} Be6 {[%emt 0:05:28]} 14. Nc3 {[%emt 0:06:52]} Qb6 {[%emt 0:17:51]} 15. Na4 {[%emt 0:09:53]} Qc7 {[%emt 0:07:17]} 16. Nc5 {[%emt 0:10:41]} (16. d5 $11 Bd7 17. Nc3) 16... Bf5 {[%emt 0:03:06]} 17. Nb3 {[%emt 0:00:59]} a5 {[%emt 0:01:51]} 18. d5 {[%emt 0:08:03]} Qe5+ {[%emt 0:09:48]} (18... Rfd8 $17) 19. Be2 {[%emt 0:01:47]} Qxb2 {[%emt 0:01:19]} 20. Qxb2 {[%emt 0:00:54]} Bxb2 $15 {[%emt 0:00:07]} 21. Nd4 {[%emt 0:02:47]} Rac8 {[%emt 0:03:00]} 22. Nxf5 {[%emt 0:00:49]} gxf5 {[%emt 0:00:41]} 23. Rb1 {[%emt 0:05:03]} Bc3+ {[%emt 0:01:13]} 24. Kd1 {[%emt 0:00:29]} Rc7 {[%emt 0:02:35]} 25. Kc2 {[%emt 0:02:17]} Bb4 {[%emt 0:01:37]} 26. Kb3 {[%emt 0:01:15]} b5 {[%emt 0:01:52]} 27. Rbc1 {[%emt 0:10:46]} Rfc8 {[%emt 0:00:58]} 28. a4 {[%emt 0:00:19]} bxc4+ {[%emt 0:04:23]} 29. Rxc4 {[%emt 0:00:09]} Rc6 30. Rc5 {[%emt 0:00:30]} R6c7 {[%emt 0:00:29]} 31. Rc4 Rxc4 {[%emt 0:01:01]} 32. Bxc4 {[%emt 0:00:36]} Kg7 {[%emt 0:00:30]} 33. Rd1 Kf6 {[%emt 0:00:30]} 34. Rd4 {[%emt 0:01:00]} h6 {[%emt 0:00:30]} 1/2-1/2

[Event "22nd Hoogeveen Open 2018"]
[Site "Hoogeveen"]
[Date "2018.10.21"]
[Round "2"]
[White "Biermann, Lenhard"]
[Black "Van Randtwijk, Mick"]
[Result "0-1"]
[ECO "E11"]
[WhiteElo "2153"]
[BlackElo "1979"]
[Annotator "NA"]
[PlyCount "84"]
[EventDate "2018.10.20"]
[EventType "swiss"]
[EventCountry "NED"]
[SourceTitle "playchess.com"]
[Source "ChessBase"]
[SourceQuality "1"]
[TimeControl "40/5400+30:1800+30"]

1. d4 {[%emt 0:00:00]} Nf6 {[%emt 0:00:00]} 2. Nf3 {[%emt 0:00:00]} e6 {[%emt 0:00:00]} 3. c4 {[%emt 0:00:00]} Bb4+ {[%emt 0:00:00]} 4. Nbd2 {[%emt 0:00:00]} O-O {[%emt 0:01:03]} 5. a3 {[%emt 0:00:09] LiveBook: 1841 Games} Be7 {[%emt 0:00:16]} 6. e4 {[%emt 0:00:45]} c5 {[%emt 0:00:29] E11: Bogo-Indian} (6... d5 7. e5 Nfd7 8. Bd3 c5 9. h4 g6 10. O-O Nc6 11. Nb3 dxc4 12. Bxc4 cxd4 13. Re1 a5 14. Bh6 Re8 15. Rc1 Nb6 {1-0 (39) Ding,L (2804)-Saric,I (2689) Batumi 2018}) 7. e5 {[%emt 0:03:25]} Ne8 {[%emt 0:00:17]} 8. Bd3 $146 {[%emt 0:01:27]} ({Predecessor:} 8. dxc5 Bxc5 9. Bd3 Be7 10. Qc2 h6 11. O-O b6 12. Ne4 Bb7 13. Bf4 f5 14. exf6 Nxf6 15. Nxf6+ Rxf6 {½-½ (29) Can,E (2555)-Stupak,K (2567) Moscow 2015}) 8... cxd4 {[%emt 0:05:59]} 9. Nxd4 {[%emt 0:01:36]} d6 {[%emt 0:00:07]} 10. exd6 {[%emt 0:02:20]} Nxd6 {[%emt 0:00:13]} 11. O-O {[%emt 0:04:19]} b6 {[%emt 0:04:06]} 12. b4 {[%emt 0:14:29]} Bf6 {[%emt 0:08:23]} 13. Bb2 {[%emt 0:02:38]} Bb7 {[%emt 0:00:26]} 14. Qc2 {[%emt 0:07:15]} h6 {[%emt 0:03:11]} 15. Rad1 {[%emt 0:11:07]} ({White should try} 15. c5 $14 Ne8 16. N2b3) 15... Nd7 {[%emt 0:03:28]} 16. Ne4 {[%emt 0:04:27]} Nxe4 {[%emt 0:02:31]} 17. Bxe4 {[%emt 0:01:41]} Bxe4 {[%emt 0:00:08]} 18. Qxe4 {[%emt 0:00:08]} Rc8 {[%emt 0:00:28]} 19. Rc1 {[%emt 0:10:53]} Qc7 {[%emt 0:03:16]} 20. Rfd1 {[%emt 0:01:17]} Rfd8 {[%emt 0:01:52]} 21. Nb5 {[%emt 0:02:56]} Qb8 {[%emt 0:00:14]} 22. Qe2 {[%emt 0:00:14] [#]} Bxb2 $1 {[%emt 0:04:14]} 23. Qxb2 {[%emt 0:00:06]} Ne5 {[%emt 0:00:21]} 24. Rxd8+ {[%emt 0:04:54]} Rxd8 {[%emt 0:02:18]} 25. Qe2 {[%emt 0:00:59]} a6 {[%emt 0:05:25]} 26. Nc3 {[%emt 0:00:49]} Qc7 {[%emt 0:04:17]} 27. Ne4 {[%emt 0:01:11]} Nd3 {[%emt 0:02:04]} 28. Rc3 {[%emt 0:02:11] [#]} Nf4 $1 {[%emt 0:02:04]} 29. Qf3 {[%emt 0:02:13]} Qe5 {[%emt 0:00:22]} 30. g3 $17 {[%emt 0:01:58]} Qxe4 {[%emt 0:06:39]} 31. gxf4 {[%emt 0:02:08]} Qb1+ {[%emt 0:00:28]} 32. Kg2 {[%emt 0:00:19]} Rd1 {[%emt 0:00:08]} 33. f5 {[%emt 0:04:24]} exf5 {[%emt 0:03:08]} 34. Qe2 {[%emt 0:05:40]} f4 {[%emt 0:05:54]} 35. Rc2 {[%emt 0:01:05]} Rg1+ {[%emt 0:03:50]} 36. Kh3 {[%emt 0:00:16]} Rg6 {[%emt 0:00:41]} 37. Qe4 {[%emt 0:07:27]} Qd1 {[%emt 0:07:04]} 38. Qe8+ {[%emt 0:01:42]} Kh7 {[%emt 0:00:07]} 39. Qe2 {[%emt 0:00:27]} Qd7+ {[%emt 0:00:21]} 40. Kh4 {[%emt 0:00:06]} Qd8+ {[%emt 0:00:06]} 41. Kh3 {[%emt 0:30:14]} Qg5 {[%emt 0:30:06]} 42. c5 {[%emt 0:00:00]} Qg2+ {[%emt 0:00:00]} 0-1

[Event "22nd Hoogeveen Open 2018"]
[Site "Hoogeveen"]
[Date "2018.10.21"]
[Round "2"]
[White "Dev, Shah"]
[Black "Maters, Arthur"]
[Result "1-0"]
[ECO "D85"]
[WhiteElo "2146"]
[BlackElo "1933"]
[Annotator "NA"]
[PlyCount "87"]
[EventDate "2018.10.20"]
[EventType "swiss"]
[EventCountry "NED"]
[SourceTitle "playchess.com"]
[Source "ChessBase"]
[SourceQuality "1"]
[TimeControl "40/5400+30:1800+30"]

1. d4 {[%emt 0:00:00]} Nf6 {[%emt 0:00:00]} 2. c4 {[%emt 0:00:30]} g6 {[%emt 0:00:30]} 3. Nc3 {[%emt 0:00:30]} d5 {[%emt 0:00:30]} 4. cxd5 {[%emt 0:00:30]} Nxd5 {[%emt 0:00:30]} 5. e4 {[%emt 0:00:30]} Nxc3 {[%emt 0:00:30]} 6. bxc3 {[%emt 0:00:30]} Bg7 {[%emt 0:00:30]} 7. Nf3 {[%emt 0:00:30]} Bg4 {[%emt 0:00:30] D85: Exchange Grünfeld: Unusual White 7th moves and lines with 7 Nf3} (7... c5 8. Be2 Bg4 9. Rb1 O-O 10. O-O cxd4 11. cxd4 Bxf3 12. Bxf3 Bxd4 13. Rxb7 Nc6 14. Qa4 Qc8 15. Rb3 Qe6 16. e5 Rac8 17. Bxc6 Qxc6 18. Qxd4 Qxc1 19. e6 Qc5 20. exf7+ Rxf7 21. Qd2 Qc2 22. Qe3 Qxa2 {½-½ (45) Andreikin,D (2710)-Nepomniachtchi,I (2768) Satka 2018}) 8. Qb3 $146 {[%emt 0:11:50]} ({Predecessor:} 8. h3 Bxf3 9. Qxf3 c5 10. Bc4 O-O 11. d5 Nd7 12. Bf4 Ne5 13. Bxe5 Bxe5 14. O-O {½-½ (14) Susterman,L (2303)-Ianocichin,V (2251) Kishinev 2008}) 8... Bxf3 {[%emt 0:03:23]} 9. gxf3 {[%emt 0:10:19]} Nd7 {[%emt 0:07:38]} 10. Be3 {[%emt 0:06:03]} O-O {[%emt 0:03:27]} 11. Bg2 {[%emt 0:04:08]} c5 {[%emt 0:05:03]} 12. O-O {[%emt 0:02:50]} ({Don't play} 12. Qxb7 cxd4 13. cxd4 Nc5 $15) (12. dxc5 Qa5 $15) 12... Qc7 {[%emt 0:01:52]} 13. f4 {[%emt 0:01:33]} e6 {[%emt 0:06:55]} 14. Rfd1 {[%emt 0:08:46]} Rab8 {[%emt 0:13:33]} 15. Rac1 {[%emt 0:01:04]} Rfd8 {[%emt 0:02:19]} 16. Kh1 {[%emt 0:10:33]} b6 {[%emt 0:03:43]} (16... b5 $11) 17. Rg1 {[%emt 0:09:03]} (17. e5 $14) 17... Nf6 {[%emt 0:01:18]} 18. Qd1 {[%emt 0:14:18]} h5 {[%emt 0:18:31]} 19. h3 {[%emt 0:02:18]} Qe7 {[%emt 0:01:11]} 20. Qf3 {[%emt 0:03:01]} Qd7 {[%emt 0:08:00]} 21. Rgd1 {[%emt 0:02:31]} Qc6 {[%emt 0:02:05]} 22. d5 {[%emt 0:02:51]} exd5 {[%emt 0:01:04]} 23. e5 {[%emt 0:01:13]} Nh7 {[%emt 0:04:54]} 24. c4 {[%emt 0:00:45]} Qe6 {[%emt 0:01:56]} 25. cxd5 {[%emt 0:00:35]} Qf5 {[%emt 0:00:05]} 26. h4 {[%emt 0:01:30]} Qg4 {[%emt 0:00:46]} 27. Qxg4 {[%emt 0:00:58]} hxg4 {[%emt 0:00:02]} 28. Kh2 {[%emt 0:00:09]} f5 {[%emt 0:01:03]} 29. d6 {[%emt 0:01:36]} Bf8 {[%emt 0:02:43]} 30. Rd2 {[%emt 0:02:29]} Kf7 {[%emt 0:01:32]} 31. Rcd1 {[%emt 0:00:32]} Nf6 {[%emt 0:00:19]} 32. exf6 {[%emt 0:00:24]} Kxf6 {[%emt 0:00:04]} 33. d7 {[%emt 0:00:48]} Be7 {[%emt 0:00:57]} 34. Bc6 {[%emt 0:00:27]} Rh8 {[%emt 0:00:06]} 35. Kg2 {[%emt 0:00:08]} Rbf8 {[%emt 0:02:13]} 36. Rd3 {[%emt 0:00:43]} Bd8 {[%emt 0:03:07]} 37. Bc1 {[%emt 0:00:18]} Kf7 {[%emt 0:01:10]} 38. Bb2 $18 {[%emt 0:00:28]} Rxh4 {[%emt 0:00:40]} 39. Re1 {[%emt 0:00:16]} g5 {[%emt 0:00:08]} 40. Bd5+ {[%emt 0:00:14]} Kg6 {[%emt 0:00:06]} 41. Re8 {[%emt 0:30:23]} gxf4 {[%emt 0:32:21]} 42. Rxf8 {[%emt 0:00:39]} f3+ {[%emt 0:00:06]} 43. Bxf3 {[%emt 0:00:02]} gxf3+ {[%emt 0:00:10]} 44. Rxf3 {[%emt 0:00:05]} 1-0

[Event "22nd Hoogeveen Open 2018"]
[Site "Hoogeveen"]
[Date "2018.10.21"]
[Round "2"]
[White "Vroombout, Enrico"]
[Black "Emans, Job"]
[Result "1/2-1/2"]
[ECO "A13"]
[WhiteElo "2132"]
[BlackElo "1927"]
[Annotator "NA"]
[PlyCount "58"]
[EventDate "2018.10.20"]
[EventType "swiss"]
[EventCountry "NED"]
[SourceTitle "playchess.com"]
[Source "ChessBase"]
[SourceQuality "1"]
[TimeControl "40/5400+30:1800+30"]

1. b3 {[%emt 0:00:00]} Nf6 {[%emt 0:00:00]} 2. Bb2 {[%emt 0:00:00]} e6 {[%emt 0:00:12]} 3. e3 {[%emt 0:00:00]} d5 {[%emt 0:01:38]} 4. Nf3 {[%emt 0:00:57]} Be7 {[%emt 0:01:21]} 5. Be2 {[%emt 0:03:18]} O-O {[%emt 0:00:19]} 6. O-O {[%emt 0:00:31]} c5 {[%emt 0:03:40]} 7. d4 {[%emt 0:05:11]} Nc6 {[%emt 0:06:09]} 8. Nbd2 {[%emt 0:00:13]} b6 {[%emt 0:04:00]} 9. c4 {[%emt 0:20:08] LiveBook: 11 Games} Bb7 {[%emt 0:11:40]} 10. dxc5 {[%emt 0:14:27]} Bxc5 {[%emt 0:01:03]} 11. a3 {[%emt 0:08:40]} d4 {[%emt 0:17:36]} 12. exd4 {[%emt 0:02:32]} Nxd4 {[%emt 0:00:25]} 13. Nxd4 {[%emt 0:10:52]} Bxd4 {[%emt 0:00:34]} 14. Bxd4 {[%emt 0:00:04]} Qxd4 {[%emt 0:00:08]} 15. Bf3 $11 {[%emt 0:00:43]} Rab8 {[%emt 0:16:57]} 16. Ne4 {[%emt 0:10:27]} Qxd1 {[%emt 0:03:41]} 17. Nxf6+ {[%emt 0:00:05]} gxf6 {[%emt 0:00:06]} 18. Rfxd1 {[%emt 0:00:01]} Bxf3 {[%emt 0:00:14]} 19. gxf3 {[%emt 0:00:04]} Rfd8 {[%emt 0:00:47]} 20. Kf1 {[%emt 0:00:23]} Kf8 {[%emt 0:00:33]} 21. Ke2 {[%emt 0:00:10]} Ke7 {[%emt 0:00:21]} 22. Rxd8 {[%emt 0:03:27]} Rxd8 {[%emt 0:00:08]} 23. Rg1 {[%emt 0:00:04]} f5 {[%emt 0:06:13]} 24. Rg7 {[%emt 0:04:15]} Kf6 {[%emt 0:05:08]} 25. Rxh7 {[%emt 0:00:05]} Kg6 {[%emt 0:00:14]} 26. Rh3 {[%emt 0:00:03]} f4 {[%emt 0:00:12]} 27. Rh4 {[%emt 0:00:07]} f5 {[%emt 0:00:08]} 28. Rh3 {[%emt 0:10:41]} e5 {[%emt 0:01:50]} 29. Rh4 {[%emt 0:00:03]} Kg7 {[%emt 0:00:27]} 1/2-1/2

[Event "22nd Hoogeveen Open 2018"]
[Site "Hoogeveen"]
[Date "2018.10.21"]
[Round "2"]
[White "Hilwerda, Jonas"]
[Black "Bleeker, Kasper"]
[Result "1-0"]
[ECO "C58"]
[WhiteElo "2109"]
[BlackElo "1891"]
[Annotator "NA"]
[PlyCount "73"]
[EventDate "2018.10.20"]
[EventType "swiss"]
[EventCountry "NED"]
[SourceTitle "playchess.com"]
[Source "ChessBase"]
[SourceQuality "1"]
[TimeControl "40/5400+30:1800+30"]

1. e4 {[%emt 0:00:00]} e5 {[%emt 0:00:00]} 2. Nf3 {[%emt 0:00:00]} Nc6 {[%emt 0:00:00]} 3. Bc4 {[%emt 0:00:00]} Nf6 {[%emt 0:00:00]} 4. Ng5 {[%emt 0:00:20]} d5 {[%emt 0:00:00]} 5. exd5 {[%emt 0:00:00]} Na5 {[%emt 0:00:00]} 6. Bb5+ {[%emt 0:00:00]} c6 {[%emt 0:00:02]} 7. dxc6 {[%emt 0:00:00]} bxc6 {[%emt 0:00:03]} 8. Bd3 {[%emt 0:00:06]} Nd5 {[%emt 0:00:06] C58: Two Knights: 4 Ng5 d5 5 exd5 Na5 sidelines} 9. h4 {[%emt 0:00:27]} ({Weaker is} 9. Qh5 g6 $17) (9. Nf3 Bd6 10. O-O O-O 11. Re1 f5 12. Nxe5 Qf6 13. Nf3 g5 14. g3 f4 15. Nc3 fxg3 16. hxg3 Nxc3 17. dxc3 {½-½ (52) Kovalev,V (2639)-Demchenko,A (2660) Riadh 2017}) 9... Be7 {[%emt 0:07:59]} 10. Qf3 {[%emt 0:02:27]} f5 {[%emt 0:11:50]} 11. Bxf5 {[%emt 0:00:12]} Rf8 {[%emt 0:13:25]} 12. Qh5+ {[%emt 0:00:06]} g6 {[%emt 0:00:07]} 13. Bxg6+ {[%emt 0:00:03]} hxg6 {[%emt 0:00:02]} 14. Qxg6+ {[%emt 0:00:09]} Kd7 {[%emt 0:00:14]} 15. d3 {[%emt 0:00:22]} Rf6 $146 {[%emt 0:08:00]} ({Predecessor:} 15... Kc7 16. Bd2 {0-1 (78) Tokhirjonova,G (2379)-Monnisha,G (2295) Mumbai 2018}) 16. Qe4 {[%emt 0:08:04]} Qb6 {[%emt 0:08:08]} (16... Kc7 $16) 17. O-O {[%emt 0:05:24]} Bb7 {[%emt 0:16:18]} 18. Nd2 {[%emt 0:09:10]} Re8 {[%emt 0:07:13]} 19. Qg4+ {[%emt 0:01:44]} Kc7 {[%emt 0:00:47] [#]} 20. Nde4 {[%emt 0:19:44]} (20. b4 $1 $18 {[%mdl 512]} Qxb4 21. Nde4) 20... Bc8 {[%emt 0:02:08]} 21. Qh5 {[%emt 0:01:27]} Rff8 {[%emt 0:01:06]} 22. Nf7 {[%emt 0:06:20]} Nb7 {[%emt 0:02:43]} 23. Qxe5+ {[%emt 0:03:01]} ({Not} 23. Bh6 Rg8 $18) 23... Bd6 {[%emt 0:00:59]} 24. Qg7 {[%emt 0:03:16]} Rg8 $18 {[%emt 0:01:15]} 25. Qh7 {[%emt 0:03:54]} Bd7 {[%emt 0:05:02]} 26. c4 {[%emt 0:02:40]} Nf4 {[%emt 0:02:18]} 27. Nfxd6 {[%emt 0:03:00]} Ne2+ {[%emt 0:01:05]} 28. Kh1 {[%emt 0:06:04]} Nxd6 {[%emt 0:00:39]} 29. c5 {[%emt 0:09:25]} Qb4 {[%emt 0:04:45]} 30. cxd6+ {[%emt 0:01:17]} Kc8 {[%emt 0:00:28]} 31. Nf6 {[%emt 0:03:48]} Rg7 {[%emt 0:01:43]} 32. Qh5 {[%emt 0:02:47]} Rf8 {[%emt 0:05:07]} 33. Bg5 {[%emt 0:04:04]} Nf4 {[%emt 0:01:11]} 34. Qh6 {[%emt 0:02:07]} Ne6 {[%emt 0:01:21]} 35. Rae1 {[%emt 0:01:39]} Rgf7 {[%emt 0:00:23]} 36. Nxd7 {[%emt 0:01:43]} Kxd7 {[%emt 0:00:05]} 37. Qxe6# {[%emt 0:01:02]} 1-0

[Event "22nd Hoogeveen Open 2018"]
[Site "Hoogeveen"]
[Date "2018.10.21"]
[Round "2"]
[White "Van Dorp, Folke"]
[Black "Husers, Yannic"]
[Result "1-0"]
[ECO "C46"]
[WhiteElo "2097"]
[BlackElo "1866"]
[Annotator "NA"]
[PlyCount "53"]
[EventDate "2018.10.20"]
[EventType "swiss"]
[EventCountry "NED"]
[SourceTitle "playchess.com"]
[Source "ChessBase"]
[SourceQuality "1"]
[TimeControl "40/5400+30:1800+30"]

1. e4 {[%emt 0:00:00]} e5 {[%emt 0:00:00]} 2. Nf3 {[%emt 0:00:00]} Nc6 {[%emt 0:00:00]} 3. Nc3 {[%emt 0:00:02]} Bb4 {[%emt 0:01:06]} 4. Nd5 {[%emt 0:00:27]} Be7 {[%emt 0:01:18]} 5. Bc4 {[%emt 0:05:00]} Nf6 {[%emt 0:01:57]} 6. d3 {[%emt 0:03:31]} h6 {[%emt 0:03:41]} 7. c3 {[%emt 0:03:32]} d6 {[%emt 0:03:51]} 8. h3 {[%emt 0:05:48]} O-O {[%emt 0:04:09]} 9. b4 {[%emt 0:03:24]} Nh7 {[%emt 0:09:04]} (9... Nxd5 $11 {remains equal.} 10. Bxd5 (10. exd5 Nb8 $11) 10... Be6) 10. O-O {[%emt 0:01:57]} Kh8 {[%emt 0:06:22]} 11. d4 {[%emt 0:05:01]} f5 {[%emt 0:03:52]} 12. exf5 {[%emt 0:06:24]} e4 $16 {[%emt 0:08:09]} ({Black should play} 12... Bxf5 $14 13. dxe5 (13. Nxe7 Qxe7 14. Re1 e4 $14) 13... Nxe5 14. Nxe5 dxe5) 13. Nh2 {[%emt 0:03:26]} (13. g4 $16 exf3 14. Nf4) 13... Bxf5 {[%emt 0:08:16]} 14. Qh5 {[%emt 0:00:22]} Ng5 {[%emt 0:11:29]} 15. Ng4 {[%emt 0:06:52]} Kh7 {[%emt 0:03:32]} 16. Nxe7 {[%emt 0:08:59]} Qxe7 {[%emt 0:04:17]} 17. Ne3 {[%emt 0:02:52]} Bg6 {[%emt 0:03:29]} 18. Qg4 {[%emt 0:02:21]} h5 {[%emt 0:05:50]} 19. Qg3 {[%emt 0:00:34]} Nf3+ {[%emt 0:00:47]} 20. gxf3 {[%emt 0:04:35]} Rxf3 {[%emt 0:00:11]} 21. Qg2 {[%emt 0:00:31]} Raf8 {[%emt 0:01:40]} 22. Be2 {[%emt 0:01:11]} Qh4 {[%emt 0:01:13]} 23. Bxf3 {[%emt 0:01:41]} Rxf3 {[%emt 0:00:08]} 24. Nd5 {[%emt 0:01:33]} Rf5 {[%emt 0:01:51]} 25. Nxc7 {[%emt 0:05:37]} Ne7 {[%emt 0:01:11]} 26. Ne6 {[%emt 0:00:31]} Nd5 {[%emt 0:00:27]} 27. Bg5 {[%emt 0:01:46]} 1-0

[Event "22nd Hoogeveen Open 2018"]
[Site "Hoogeveen"]
[Date "2018.10.21"]
[Round "2"]
[White "Jelic, Bruno"]
[Black "Damen, Jip"]
[Result "0-1"]
[ECO "A32"]
[WhiteElo "2076"]
[BlackElo "2192"]
[Annotator "NA"]
[PlyCount "106"]
[EventDate "2018.10.20"]
[EventType "swiss"]
[EventCountry "NED"]
[SourceTitle "playchess.com"]
[Source "ChessBase"]
[SourceQuality "1"]
[TimeControl "40/5400+30:1800+30"]

1. d4 {[%emt 0:00:00]} e6 {[%emt 0:00:00]} 2. c4 {[%emt 0:00:00]} Nf6 {[%emt 0:00:00]} 3. Nf3 {[%emt 0:00:00]} c5 {[%emt 0:00:04]} 4. Nc3 {[%emt 0:00:23]} cxd4 {[%emt 0:00:35]} 5. Nxd4 {[%emt 0:01:45] LiveBook: 2115 Games} d5 {[%emt 0:01:43]} 6. cxd5 {[%emt 0:04:03]} Nxd5 {[%emt 0:00:10]} 7. Bd2 {[%emt 0:03:15]} e5 {[%emt 0:04:23] A32: Symmetrical English: 2 Nf3 Nf6 3 d4 cxd4 4 Nxd4 e6} (7... Be7 8. e4 Nxc3 9. Bxc3 O-O 10. Be2 Qb6 11. Qb3 Qxb3 12. Nxb3 Rd8 13. f3 b6 14. Rd1 Rxd1+ 15. Kxd1 Ba6 {½-½ (48) Mamedyarov,S (2808)-So,W (2778) Paris 2018}) 8. Nb3 $146 {[%emt 0:03:36]} ({Predecessor:} 8. Ndb5 Be6 9. Nxd5 Bxd5 10. Bc3 Bc6 11. Qxd8+ Kxd8 12. O-O-O+ Nd7 13. e3 a6 14. Ba5+ b6 15. Bxb6+ {0-1 (23) Ribli,Z (2585)-Csiszar,C (2435) Hungary 2005}) 8... Nc6 {[%emt 0:02:51]} 9. g3 {[%emt 0:01:58]} Be6 {[%emt 0:06:19]} 10. Bg2 {[%emt 0:00:26]} Be7 {[%emt 0:01:29]} 11. O-O {[%emt 0:01:43]} O-O {[%emt 0:00:23]} 12. Nxd5 {[%emt 0:10:04]} Bxd5 {[%emt 0:00:06]} 13. Bc3 {[%emt 0:01:46]} Bxg2 {[%emt 0:01:01]} 14. Qd2 {[%emt 0:05:30]} Qd6 15. Qxd6 {[%emt 0:00:32]} Rfe8 {[%emt 0:00:15]} 16. Qd8 Rexd8 {[%emt 0:01:00]} 17. Kxg2 {[%emt 0:00:37]} f6 {[%emt 0:00:37]} 18. Rfd1 {[%emt 0:09:14]} Kf7 {[%emt 0:00:40]} 19. Na5 {[%emt 0:01:26]} Nxa5 {[%emt 0:01:10]} 20. Bxa5 {[%emt 0:00:11]} b6 {[%emt 0:00:27]} 21. Bc3 {[%emt 0:00:25]} Ke6 {[%emt 0:00:55]} 22. e4 {[%emt 0:04:07]} Rac8 {[%emt 0:02:34]} 23. f4 {[%emt 0:02:09]} exf4 {[%emt 0:01:37]} 24. gxf4 {[%emt 0:00:09]} g6 {[%emt 0:00:43]} (24... f5 $5 {[%cal Rf5e4]} 25. Kf3 g6 $15) 25. Kf3 {[%emt 0:00:46]} b5 {[%emt 0:08:46]} 26. a3 {[%emt 0:00:34]} Rxd1 {[%emt 0:06:49]} 27. Rxd1 {[%emt 0:00:02]} Bxa3 {[%emt 0:00:12]} 28. Bd4 {[%emt 0:04:52]} Be7 {[%emt 0:02:11]} 29. Ra1 {[%emt 0:02:49]} Rc4 {[%emt 0:07:23]} 30. Ra6+ {[%emt 0:02:12]} Bd6 {[%emt 0:05:04]} 31. Bxa7 {[%emt 0:17:53]} Ra4 {[%emt 0:06:22]} 32. Rxa4 $17 {[%emt 0:01:00]} bxa4 {[%emt 0:00:06]} 33. h3 {[%emt 0:01:50]} Bb4 {[%emt 0:03:15]} 34. Bd4 {[%emt 0:00:38]} Bd2 {[%emt 0:00:51]} 35. Bc5 {[%emt 0:02:08]} h6 {[%emt 0:02:41]} 36. Bd4 {[%emt 0:00:42]} f5 {[%emt 0:02:11]} 37. Bg7 {[%emt 0:01:56]} Bb4 {[%emt 0:03:52]} 38. Bd4 {[%emt 0:02:58]} Be7 {[%emt 0:00:52]} 39. Bc3 {[%emt 0:01:37]} Bd8 {[%emt 0:06:27]} 40. Bd4 {[%emt 0:00:50]} fxe4+ {[%emt 0:08:32]} 41. Kxe4 {[%emt 0:30:12]} Bf6 {[%emt 0:30:24]} 42. Bxf6 {[%emt 0:01:14]} Kxf6 {[%emt 0:00:14]} 43. h4 {[%emt 0:02:31]} Ke6 {[%emt 0:01:17]} 44. Kf3 {[%emt 0:02:18]} Kf5 {[%emt 0:08:52]} 45. Kg3 {[%emt 0:00:28]} Ke4 {[%emt 0:02:39]} 46. Kg4 {[%emt 0:00:38]} Kd3 {[%emt 0:00:53]} 47. h5 {[%emt 0:06:38]} gxh5+ {[%emt 0:00:12]} 48. Kxh5 {[%emt 0:00:22]} Ke4 {[%emt 0:00:14]} 49. Kxh6 {[%emt 0:01:01]} Kxf4 {[%emt 0:00:11]} 50. Kg6 {[%emt 0:00:13]} Ke4 {[%emt 0:00:24]} 51. Kf6 {[%emt 0:00:21]} Kd4 {[%emt 0:00:21]} 52. Ke6 {[%emt 0:00:14]} Kc4 {[%emt 0:00:12]} 53. Kd6 {[%emt 0:00:57]} Kb3 {[%emt 0:00:07]} 0-1